Cogmind - Beta 15 @@@ ROGUE MODE // 2025.07.28 @ 18:39:57 Player: Zoe Result: Destroyed self with Improved Grenade Launcher Performance ------------- Evolutions (2) 1000 Regions Visited (6) 1200 Robots Destroyed (37) 185 Value Destroyed (1098) 1098 Prototype IDs (0) 0 Alien Tech Used (0) 0 Bonus (0) 0 TOTAL SCORE: 3483 Bonus ------- None Cogmind --------- Core Integrity 0/550 Matter 231/300 Energy 121/290 System Corruption 5% Temperature Hot (259) Movement Treading (165) Location -8/Materials Parts ------- > --- POWER (2) -------- Improved Deuterium Engine > --- PROPULSION (3) --- Light Treads Armored Treads > --- UTILITY (4) ------ Large Storage Unit > --- WEAPON (2) ------- Improved Grenade Launcher > --- INVENTORY (15) --- Light Treads Light Treads Large Storage Unit Beam Rifle Pulse Rifle Assault Rifle Datajack Great Axe Great Axe Great Axe Peak State ------------ > --- POWER ------------ Light Nuclear Core Improved Deuterium Engine > --- PROPULSION ------- Aluminum Leg VSS Leg VSS Leg > --- UTILITY ---------- Improved Heat Sink Large Storage Unit Signal Interpreter Improved Terrain Scanner > --- WEAPON ----------- Gauss Rifle Great Axe > --- INVENTORY -------- Improved Deuterium Engine Improved Deuterium Engine Improved Deuterium Engine Aluminum Leg Large Storage Unit Beam Rifle Particle Gun Pulse Rifle Assault Rifle Improved Grenade Launcher Improved Grenade Launcher Datajack Great Axe Great Axe Great Axe [Rating: 34] Favorites ----------- Power Light Ion Engine Engine Light Ion Engine Power Core Light Nuclear Core Propulsion Aluminum Leg Treads Light Treads Leg Aluminum Leg Wheel Armored Wheel Utility Signal Interpreter Device Improved Terrain Scanner Storage Large Storage Unit Processor Signal Interpreter Weapon Heavy Assault Rifle Energy Gun Heavy EM Pulse Gun Ballistic Gun Heavy Assault Rifle Launcher Improved Grenade Launcher Slashing Weapon Great Axe Special Melee Weapon Datajack Build | -11 -10 -9 -9 -9 -8 -8 ------- Run | Yrd Mat Mat Min Exi Min Mat Slots Evolved 4 | . . 2 . . . 2 Power 1 | . . . . . . 1 Propulsion 1 | . . 1 . . . . Utility 2 | . . 1 . . . 1 Weapon . | . . . . . . . Parts Attached 52 | 9 3 10 . 3 4 23 Power 11 | 2 . 1 . . 1 7 Engine 7 | 2 . 1 . . . 4 Core 4 | . . . . . 1 3 Reactor . | . . . . . . . Propulsion 18 | 2 . 4 . 2 1 9 Treads 5 | . . . . . . 5 Leg 10 | 2 . 4 . 2 1 1 Wheel 3 | . . . . . . 3 Hover . | . . . . . . . Flight . | . . . . . . . Utility 7 | 2 2 1 . 1 . 1 Device 3 | 1 . 1 . . . 1 Storage 3 | 1 1 . . 1 . . Processor 1 | . 1 . . . . . Hackware . | . . . . . . . Protection . | . . . . . . . Artifact . | . . . . . . . Weapon 16 | 3 1 4 . . 2 6 Energy Gun 4 | . . 2 . . 1 1 Energy Cannon . | . . . . . . . Ballistic Gun 6 | 3 . 2 . . 1 . Ballistic Cannon . | . . . . . . . Launcher 2 | . . . . . . 2 Special Weapon . | . . . . . . . Impact Weapon . | . . . . . . . Slashing Weapon 3 | . . . . . . 3 Piercing Weapon . | . . . . . . . Special Melee Weapon 1 | . 1 . . . . . Unidentified Prototypes . | . . . . . . . Parts Lost 21 | . . 2 . . 3 16 Power 6 | . . 1 . . 1 4 Propulsion 7 | . . 1 . . . 6 Utility 3 | . . . . . . 3 Weapon 5 | . . . . . 2 3 Highest Loss Streak 7 | . . 1 . . 3 7 To Critical Strikes 1 | . . . . . 1 . Average Backups 8 | 3 6 7 7 7 8 12 Power . | . . . . . . 1 Propulsion 1 | 2 2 1 2 2 2 1 Utility 1 | . 1 1 . . 1 1 Weapon 4 | . 2 3 4 4 4 7 Tool/Special . | . . . . . . . Unused Backups 10 | . 4 2 . . . 4 Power . | . . . . . . . Propulsion 6 | . 4 . . . . 2 Utility 2 | . . 1 . . . 1 Weapon 2 | . . 1 . . . 1 Tool/Special . | . . . . . . . Average Slot Usage (%) 94 | . 100 92 100 100 98 80 Engine 9 | . 14 9 11 11 8 3 Core 3 | . . . . . 1 11 Treads 1 | . . . . . . 6 Leg 27 | . 28 31 33 33 33 14 Wheel 1 | . . . . . . 4 Device 9 | . 8 7 11 11 11 8 Storage 11 | . 14 11 11 11 11 9 Processor 8 | . 5 11 11 11 11 5 Energy Gun 5 | . . 1 11 11 10 2 Ballistic Gun 12 | . 27 16 11 11 2 6 Slashing Weapon 1 | . . . . . . 5 Special Melee Weapon 2 | . . 3 . . 8 1 Peak Build Rating 34 | 9 9 20 18 18 23 34 Average Rating 16 | 4 8 15 18 16 16 24 On Entrance 13 | . 9 8 18 18 16 23 Naked Turns . | . . . . . . . Heaviest Build 51 | 14 14 18 15 30 33 51 Greatest Support 60 | 20 20 36 34 34 37 60 Greatest Overweight (x) 8 | 1 . . . . . 8 Average Overweight (x) . | . . . . . . . Largest Inventory Capacity 25 | 8 25 8 8 15 15 15 Average Capacity 11 | 6 8 8 8 11 15 15 Most Carried 15 | 6 8 8 7 8 9 15 Average Carried 8 | 4 6 7 7 7 8 12 Final Capacity 15 | 8 8 8 8 15 15 15 Final Carried 10 | 5 8 7 7 8 9 10 Class Distribution -------------------- 60% | Mutant 39% | Scavenger-Mutant Dominant Class ---------------- Mutant | -10/Materials Mutant | -9/Materials Mutant | -9/Mines Scavenger-Mutant | -9/Exiles Mutant | -8/Mines Scavenger-Mutant | -8/Materials Resources | -11 -10 -9 -9 -9 -8 -8 ----------- Run | Yrd Mat Mat Min Exi Min Mat Matter Collected 1255 | 287 70 138 45 . 164 551 Remotely . | . . . . . . . Salvage Created 1310 | 115 122 269 58 . 55 691 Parts 78 | 7 8 13 5 . 3 42 Haulers Intercepted 2 | . 1 . . . . 1 Recyclers Shooed . | . . . . . . . Parts Field Recycled . | . . . . . . . Retrieved Matter . | . . . . . . . Parts Self-Destructed . | . . . . . . . Prevented . | . . . . . . . Kills | -11 -10 -9 -9 -9 -8 -8 ------- Run | Yrd Mat Mat Min Exi Min Mat Combat Hostiles Destroyed 28 | . 1 6 4 . 1 16 Melee 5 | . . . . . . 5 Guns 19 | . 1 6 2 . 1 9 AOE 4 | . . . 2 . . 2 Classes Destroyed 13 | 2 3 2 1 . 1 4 Worker 1 | . . . . . . 1 Builder 2 | . . . . . . 2 Tunneler 1 | 1 . . . . . . Hauler 2 | . 1 . . . . 1 Recycler 1 | 1 . . . . . . Watcher 2 | . 2 . . . . . Swarmer 7 | . . . 4 . . 3 Grunt 10 | . 1 3 . . . 6 Brawler 1 | . . . . . . 1 Duelist 1 | . . 1 . . . . Sentry 6 | . . 2 . . . 4 Hunter 1 | . . . . . 1 . Heavy 2 | . . . . . . 2 Best Kill Streak 4 | 1 3 2 4 . 1 4 Combat Bots Only 4 | . 1 2 4 . 1 4 Max Kills in Single Turn 2 | 1 1 1 1 . 1 2 Gunslinging . | . . . . . . . Exploded 1 | . . . 1 . . 1 Melee 1 | . . . . . . 1 Uniques/NPCs Destroyed . | . . . . . . . Combat | -11 -10 -9 -9 -9 -8 -8 -------- Run | Yrd Mat Mat Min Exi Min Mat Hostile Shots Fired 226 | . 2 50 27 . 16 131 Missed 49 | . . 7 11 . 5 26 Hits 177 | . 2 43 16 . 11 105 Melee 16 | . . 12 . . . 4 Projectile 161 | . 2 31 16 . 11 101 Critical Strikes 11 | . . 2 1 . 1 7 Damage Taken 3464 | . 22 783 139 . 159 2361 Core 936 | . 11 305 31 . 18 571 Absorbed by Shields . | . . . . . . . Core Remaining (%) 68 | 100 95 . . . 11 . Volleys Fired 118 | 4 9 40 7 . 6 52 Largest 2 | 2 2 2 2 . 2 2 Hottest 91 | 40 40 79 68 . 68 91 Shots Fired 170 | 5 18 54 14 . 9 70 Gun 159 | 5 18 54 14 . 9 59 Cannon . | . . . . . . . Launcher 11 | . . . . . . 11 Special . | . . . . . . . Kinetic 105 | 5 18 39 7 . 4 32 Thermal 43 | . . 15 . . 1 27 Explosive 11 | . . . . . . 11 Electromagnetic 11 | . . . 7 . 4 . Robot Hit Streak 12 | 4 4 8 2 . 5 12 Robot Miss Streak 4 | . 4 4 4 . 2 4 Penetration Max . | . . . . . . . Secondary Targets 1 | . . . 1 . . . Max Gunslinging Chain 1 | . . . 1 . . . Shots Hit Robots 151 | 4 15 42 5 . 16 69 Core Hits 66 | 3 6 12 4 . 3 38 Critical Kills . | . . . . . . . Critical Parts Destroyed . | . . . . . . . Critical Strikes 4 | . . 1 . . . 3 Burn 1 | . . 1 . . . . Sever 3 | . . . . . . 3 Melee Attacks 36 | . 5 5 . . 9 17 Impact . | . . . . . . . Slashing 16 | . . . . . . 16 Piercing . | . . . . . . . Sneak Attacks 11 | . 5 . . . 6 . Combat Hostiles . | . . . . . . . Follow-up Attacks . | . . . . . . . Damage Inflicted 2873 | 35 116 541 130 . 88 1963 Guns 1657 | 35 114 541 50 . 88 829 Cannons . | . . . . . . . Explosions 773 | . . . 80 . . 693 Melee 441 | . . . . . . 441 Ramming 2 | . 2 . . . . . Kinetic 1066 | 35 114 396 12 . 26 483 Thermal 585 | . . 145 80 . 14 346 Explosive 693 | . . . . . . 693 Electromagnetic 86 | . . . 38 . 48 . Impact . | . . . . . . . Slashing 441 | . . . . . . 441 Piercing . | . . . . . . . Highest Corruption 5 | . . . . . . 5 Average Corruption 4 | . . . . . . 4 Corruption Purged . | . . . . . . . Corruption Blocked . | . . . . . . . Effects 9 | . . . . . . 9 Matter Fused 3 | . . . . . . 3 Heat Flow Errors 4 | . . . . . . 4 Data Loss (minor) 1 | . . . . . . 1 Misfires 1 | . . . . . . 1 Overload Shots . | . . . . . . . Overflow Damage . | . . . . . . . Projectiles . | . . . . . . . Explosions . | . . . . . . . Melee . | . . . . . . . Knockbacks . | . . . . . . . Impact . | . . . . . . . Kinetic . | . . . . . . . Secondary . | . . . . . . . Self-Inflicted Damage 187 | . . . 13 . . 174 Shots 5 | . . . 1 . . 4 Rammed . | . . . . . . . Targets Rammed 1 | . 1 . . . . . Kicked 1 | . 1 . . . . . Crushed . | . . . . . . . Highest Temperature 396 | . 6 48 11 . . 396 Average Temperature 151 | . 6 26 6 . . 177 Received Heat Transfer 702 | . 12 159 . . . 531 Effects 1 | . . . . . . 1 Damage (minor) 1 | . . . . . . 1 Siege Activations . | . . . . . . . Martial Activations . | . . . . . . . Shielding Activations . | . . . . . . . Robots Disrupted . | . . . . . . . Combat Hostiles . | . . . . . . . Robots Corrupted . | . . . . . . . Combat Hostiles . | . . . . . . . Parts Fried 1 | . . . . . 1 . Impact Corruptions . | . . . . . . . Robots Melted . | . . . . . . . Combat Hostiles . | . . . . . . . Parts Melted 2 | . . 1 . . . 1 Heat Transferred 1358 | . . 444 100 . 37 777 Parts Sabotaged . | . . . . . . . Parts Stolen . | . . . . . . . Parts Stripped . | . . . . . . . Power Chain Reactions 2 | . . . 2 . . . Alert | -11 -10 -9 -9 -9 -8 -8 ------- Run | Yrd Mat Mat Min Exi Min Mat Maximum Alert Level . | . . . . . . . Low Security (%) 100 | 100 100 100 100 . 100 100 Level 1 . | . . . . . . . Level 2 . | . . . . . . . Level 3 . | . . . . . . . Level 4 . | . . . . . . . Level 5 . | . . . . . . . High Security . | . . . . . . . Max Security . | . . . . . . . Peak Influence 154 | 5 33 50 92 . 30 154 Initial 5 | . . . 5 . . . Average 28 | 1 3 21 64 . 2 70 Influence Increases 958 | 10 56 195 97 . 30 570 Destroy 0b10 Robot/C 560 | . 20 120 80 . 20 320 Destroy 0b10 Robot/NC 45 | 10 15 . . . . 20 Destroy Leader 178 | . 16 40 10 . 10 102 Successful Hack 13 | . 5 5 . . . 3 Disable Machine 30 | . . . . . . 30 Destroy Structure 57 | . . . 7 . . 50 Lose Combat Pursuer 75 | . . 30 . . . 45 Influence Decreases 840 | 10 56 181 29 82 30 452 Entered New Map 91 | . . . 9 82 . . Time Decay 569 | 10 56 161 20 . 30 292 Lost Part 180 | . . 20 . . . 160 Squads Dispatched 7 | . 1 1 . . . 5 Investigation . | . . . . . . . Extermination . | . . . . . . . Reinforcement 7 | . 1 1 . . . 5 Assault . | . . . . . . . Garrison . | . . . . . . . Intercept . | . . . . . . . Searches Triggered . | . . . . . . . Construction Impeded . | . . . . . . . Haulers Reinforced . | . . . . . . . Active Scanning Responses . | . . . . . . . Cargo Convoy Interrupts . | . . . . . . . Stealth | -11 -10 -9 -9 -9 -8 -8 --------- Run | Yrd Mat Mat Min Exi Min Mat Distress Signals 6 | . 1 2 . . . 3 Communications Jammed . | . . . . . . . Distress Signals . | . . . . . . . Times Spotted 51 | . 6 12 4 . 1 28 Peak Tracking Total 7 | . 2 4 4 . 1 7 Tactical Retreats 5 | . . 2 . . . 3 Traps | -11 -10 -9 -9 -9 -8 -8 ------- Run | Yrd Mat Mat Min Exi Min Mat Traps Triggered . | . . . . . . . Indirectly . | . . . . . . . Trap Hack Attempts . | . . . . . . . Triggered . | . . . . . . . Disarmed . | . . . . . . . Reprogrammed . | . . . . . . . Reused . | . . . . . . . Traps Extracted . | . . . . . . . Installed . | . . . . . . . Triggered . | . . . . . . . Machines | -11 -10 -9 -9 -9 -8 -8 ---------- Run | Yrd Mat Mat Min Exi Min Mat Machines Disabled 2 | . . . . . . 2 Max in Single Turn 1 | . . . . . . 1 Machines Repaired . | . . . . . . . Machines Dismantled . | . . . . . . . Machines Sabotaged . | . . . . . . . Overloaded Fab Kills . | . . . . . . . Hacking | -11 -10 -9 -9 -9 -8 -8 --------- Run | Yrd Mat Mat Min Exi Min Mat Machines Accessed 8 | . 2 1 . 4 . 1 Terminals 4 | . 2 1 . . . 1 Fabricators . | . . . . . . . Repair Stations . | . . . . . . . Recycling Units . | . . . . . . . Scanalyzers . | . . . . . . . Garrison Access . | . . . . . . . Total Hacks 12 | . 4 1 . 4 . 3 Successful 8 | . 2 1 . 4 . 1 Failed 4 | . 2 . . . . 2 Catastrophic 2 | . 1 . . . . 1 Database Lockouts . | . . . . . . . Manual 6 | . 3 . . . . 3 Terminals 8 | . 4 1 . . . 3 Fabricators . | . . . . . . . Repair Stations . | . . . . . . . Recycling Units . | . . . . . . . Scanalyzers . | . . . . . . . Garrison Access . | . . . . . . . Terminal Hacks 7 | . 2 1 . 4 . . Record 4 | . . . . 4 . . Zone Layout 3 | . 2 1 . . . . Fabricator Hacks . | . . . . . . . Repair Station Hacks . | . . . . . . . Recycling Unit Hacks . | . . . . . . . Scanalyzer . | . . . . . . . Garrison Access Hacks . | . . . . . . . Unauthorized Hacks 1 | . . . . . . 1 Terminals 1 | . . . . . . 1 Track 1 | . . . . . . 1 Fabricators . | . . . . . . . Repair Stations . | . . . . . . . Recycling Units . | . . . . . . . Scanalyzers . | . . . . . . . Garrison Access . | . . . . . . . Data Cores Recovered . | . . . . . . . Used . | . . . . . . . Hacking Detections 2 | . 1 . . . . 1 Full Trace Events . | . . . . . . . Feedback Events . | . . . . . . . Feedback Blocked . | . . . . . . . Robot Schematics Acquired . | . . . . . . . Robots Built . | . . . . . . . Authchips . | . . . . . . . Time . | . . . . . . . Total Robot Build Rating . | . . . . . . . Part Schematics Acquired . | . . . . . . . Parts Built . | . . . . . . . Authchips . | . . . . . . . Time . | . . . . . . . Total Part Build Rating . | . . . . . . . Parts Repaired . | . . . . . . . Time . | . . . . . . . Parts Recycled . | . . . . . . . Recycled Matter . | . . . . . . . Retrieved Matter . | . . . . . . . Retrieved Components . | . . . . . . . Parts Scanalyzed . | . . . . . . . Part Schematics Acquired . | . . . . . . . Parts Damaged . | . . . . . . . Bothacking | -11 -10 -9 -9 -9 -8 -8 ------------ Run | Yrd Mat Mat Min Exi Min Mat Used RIF Installer . | . . . . . . . Robots Hacked 6 | . 2 1 . . 2 1 Non-combat 5 | . 2 1 . . 2 . Combat 1 | . . . . . . 1 Robot Hacks Applied 15 | . 5 4 . . 5 1 parse_system 8 | . 3 1 . . 3 1 no_distress 5 | . 2 1 . . 2 . check_alert 2 | . . 2 . . . . Relay Couplers Released . | . . . . . . . Fabnet Peak Effective % . | . . . . . . . Robots Rewired . | . . . . . . . Allies Hacked . | . . . . . . . Hacks Repelled . | . . . . . . . Allies | -11 -10 -9 -9 -9 -8 -8 -------- Run | Yrd Mat Mat Min Exi Min Mat Total Allies . | . . . . . . . Largest Group . | . . . . . . . Highest-Rated Group . | . . . . . . . Highest-Rated Ally . | . . . . . . . Total Orders . | . . . . . . . Ally Attacks . | . . . . . . . Total Damage . | . . . . . . . Kills . | . . . . . . . Allies Corrupted . | . . . . . . . Allies Melted . | . . . . . . . Intel | -11 -10 -9 -9 -9 -8 -8 ------- Run | Yrd Mat Mat Min Exi Min Mat Active Infowar (turns) 931 | 1 321 19 . . 86 504 Terrain 913 | 1 321 1 . . 86 504 ECM 18 | . . 18 . . . . Robot Analysis Total . | . . . . . . . Derelict Logs Recovered . | . . . . . . . Drone Launches . | . . . . . . . Drone Recoveries . | . . . . . . . Exploration | -11 -10 -9 -9 -9 -8 -8 ------------- Run | Yrd Mat Mat Min Exi Min Mat Turns Passed 3231 | 83 559 434 56 799 526 774 Spaces Moved 2141 | 52 373 214 36 744 424 298 Core 16 | 14 . . . . . 2 Treads 87 | . . . . . . 87 Legs 1989 | 38 373 214 36 744 424 160 Wheels 49 | . . . . . . 49 Hover . | . . . . . . . Flight . | . . . . . . . Fastest Speed 50 | 50 120 90 100 100 110 90 Average Speed 114 | 104 120 99 100 106 110 150 Slowest Speed 450 | 120 120 120 100 110 110 450 Overloaded Moves . | . . . . . . . Propulsion Burnouts . | . . . . . . . Robots Hopped . | . . . . . . . Potential Cave-ins . | . . . . . . . Cave-ins Triggered . | . . . . . . . Exploration Rate (%) 39 | 4 48 15 9 93 90 14 Regions Visited 6 Branch Regions 3 Pre-discovered Areas . | . . . . . . . Known Exits Taken 5 | . 1 1 1 1 1 . Unknown Exits Taken 1 | 1 . . . . . . Scrap Searched 2 | . . . . . 2 . Spaces Dug . | . . . . . . . Terrain Destroyed 60 | . . . 7 . . 53 Melee . | . . . . . . . Projectile 1 | . . . . . . 1 AOE 59 | . . . 7 . . 52 Terrain Rammed . | . . . . . . . Walls Destroyed . | . . . . . . . Machines Disabled . | . . . . . . . Actions | -11 -10 -9 -9 -9 -8 -8 --------- Run | Yrd Mat Mat Min Exi Min Mat Total 2702 | 75 465 382 42 749 467 522 Wait 260 | . 63 85 . . 16 96 Move 2135 | 51 372 213 35 743 423 298 Hop . | . . . . . . . Pick Up 52 | 10 7 11 . 2 4 18 Fast Attach 8 | 2 . 1 . . . 5 Attach 27 | 5 . 9 . . 3 10 Detach 1 | . . 1 . . . . Swap 38 | 2 4 7 . 3 6 16 Drop 26 | 1 4 10 . 1 . 10 Fire 118 | 4 9 40 7 . 6 52 Melee 36 | . 5 5 . . 9 17 Ram . | . . . . . . . Kick 1 | . 1 . . . . . Crush . | . . . . . . . Escape Stasis . | . . . . . . . Rewire . | . . . . . . . Trap . | . . . . . . . Miscellaneous . | . . . . . . . Route ------- -11/Scrapyard -10/Materials (discovered 2 exits: *Mat / *Min) -9/Materials -9/Mines -9/Exiles (discovered 2 exits: *Min x2) -8/Mines (discovered 2 exits: *Mat x2) -8/Materials History --------- Turn | Location | Event 16 | -11/Scrapyard | Discovered new exit (range 15) 84 | -11/Scrapyard | Entered Materials 301 | -10/Materials | Discovered new exit (range 10) 316 | -10/Materials | Build established: Mutant 443 | -10/Materials | Identified exit to Mines 527 | -10/Materials | Discovered new exit (range 16) 543 | -10/Materials | Identified exit to Materials 643 | -10/Materials | Entered another Materials area 643 | -9/Materials | Evolved 2 slots: Propulsion x1, Utility x1 952 | -9/Materials | Core integrity fell below 50% 1061 | -9/Materials | Discovered new exit (range 15) 1076 | -9/Materials | Identified exit to Mines 1077 | -9/Materials | Entered Mines 1089 | -9/Mines | Core integrity fell below 20% 1127 | -9/Mines | Deemed a non-threat by the Exiles lab entrance 1128 | -9/Mines | Discovered new exit (range 5) 1131 | -9/Mines | Identified exit to Exiles 1133 | -9/Mines | Entered Exiles 1133 | -9/Exiles | Found Exiles lab abandoned 1151 | -9/Exiles | Discovered new exit (range 15) 1164 | -9/Exiles | Identified exit to Mines 1482 | -9/Exiles | Discovered exit to Mines (range 14) 1699 | -9/Exiles | Build established: Scavenger-Mutant 1932 | -9/Exiles | Entered Mines 2139 | -8/Mines | Discovered new exit (range 11) 2165 | -8/Mines | Identified exit to Materials 2275 | -8/Mines | Build established: Mutant 2389 | -8/Mines | Lost 3 parts (1p2w) 2420 | -8/Mines | Discovered exit to Materials (range 8) 2458 | -8/Mines | Entered Materials 2458 | -8/Materials | Evolved 2 slots: Power x1, Utility x1 2650 | -8/Materials | Build established: Scavenger-Mutant 2914 | -8/Materials | Lost 7 parts (2p3n1u1w) 3009 | -8/Materials | Lost 3 parts (2u1w) 3025 | -8/Materials | Core integrity fell below 50% 3211 | -8/Materials | Core integrity fell below 20% 3232 | -8/Materials | Destroyed self with Improved Grenade Launcher Last Messages --------------- System corrupted: Heat flow error (+292). H-61 Shepherd destroyed. Lgt. Nuclear Core destroyed. Slug penetrates Wall. Acquired Arm. Treads. Critical hit (Burn: +37). Penetrated by Slug. Great Axe destroyed. Critical hit (Burn: +37). Lgt. Treads destroyed. Penetrated by Slug. G-47 Trooper destroyed. Slug penetrates Processing Tank. U-05 Engineer lays Concrete. Slug penetrates Earth. Penetrated by Slug. Material Processor disabled. U-05 Engineer lays Concrete. System corrupted: Heat flow error (+253). U-05 Engineer destroyed. Map ----- +----------------------------------------------------+ | ?????????????????????????????????????????????????? | | ?????????????????????????????????????????????????? | | ?????????????????????????????????????????????????? | | ?????????????????????????????????????????????????? | | ?????????????????????????????????????????????????? | | ?????????????????????????????????????????????????? | | ?????????????????????????????????????????????????? | | ?????????????????????????????????????????????????? | | ?????????????????????????????????????????????????? | | ?????????????????????????????????????????????????? | | ?????????????????????????????????????????????????? | | ?????????????????????????????????????????????????? | | ?????????????????????????????????????????????????? | | ?????????????????????????????????????????????????? | | ??????????????????????????????????????? ?????????? | | ?????????????????????????????????????????????????? | | ????????????????#########????????????????????????? | | ???????????????? ????????????????????????? | | ?????????????????"" ?????????? ???????????? | | ?????????????????"" ?????????? ??? ??????? | | ????????????????"""" ?????????? ??????????? | | ?????????#???#?""""" !###??????? #????#?????? | | ?????????+ ??+ """ ##??????# #?#????????? | | ?????????# ???? #??#???# #?????#????? | | ???????### ???##### #####?## ###????????? | | ???????# ??# *!!x @!%= ;#??# #???######## | | ??## ### ?# """ ! = ##??# #???# | | ? # """ = #??## ##??# ! """ | | ? +[ " "|%x #?### #?#?# """ | | ? # % u ! ???# #???# """ | | ????#+## #% ! ?#?# #?#?# | | ???????# ##+####### # ###?### #?### """ | | ???????## # ## # ######### ##??# """ | | ????????# # ## # ## #??## = """ | | ????????# ### ## #=""" ## ##?## = *!= | | ????????# # + "R" # ########+## | | ????????# + #[" " # [==! | | ????????# # # =*+ **= | | ???? ###### # !=# | | ??? ######/##???#?# % # *# ######## | | ????????? ????????# #=== ## ###?## | | ??????? ?????????######=== ## #?# " | | ?????? ??????? ??#??#?###########!! #### " T | | ?????# ???????? ????????###??????#!! * ##?# | | ?????? ???????????##???#???#??#??#########??# | | ??????????????"????#????##?????#????#?####??# | | ??????????????"?????#?#????????????#????##??# ! | | ??????????????? ??????#??#??#???????#????#?## | | ?????????????????????#????#??????#???#??????###### | | ?????????????????????????????#?#??#???#???##?##??? | +----------------------------------------------------+ Best States ------------- Heat Dissipation 45 Energy Generation 27 Energy Capacity 480 Matter Stores 300 Matter Capacity 300 Sight Range 16 Terrain Scan Range 16 Terrain Scan Density 10 ECM Strength 1 Evasion (%) 57 Recoil Reduction 3 Item Schematics ----------------- None Robot Schematics ------------------ None Fabricated ------------ Nothing Repaired ---------- Nothing Alien Tech Used ----------------- None Achievements -------------- Let's See Who's Tougher Challenges ------------ None Game ------ Seed OpticalTripodStatue Manual? 0 Play Time 00:53:03 Cumulative 15.5 hours Start 2025.07.28 @ 17:22:09 End 2025.07.28 @ 18:39:57 Sessions 1 Manual Loads 0 Difficulty Rogue Special Mode None Game No. 30 Rogue 27 Adventurer 3 Explorer 0 Win Type - Total 0 Types 0/0/0/0/0/0/0/0/0/0 Lore% 12 Gallery% 18 Achievement% 18 Wizard Run 0 Options --------- Layout 1 ASCII 0 Keyboard 0 Movement Mouse Keybinds 0 Fullscreen 1 Font 24/Smallcaps Map View 50x35 Zoom Use 0% Tactical HUD 0 Map Filters NONE Filters NONE Steam 1 RUN: ceb82b3b-1775-463d-92f6-a7a63f0edf6e